fUSD/lending_fUSD_20240426
["ID","MTS","AMOUNT","RATE_DAILY","PERIOD"]
[323654182,1714147880093,-500.0,0.00012911,2]
[323654183,1714147880103,-500.0,0.00012911,2]
[323654184,1714147880113,-500.0,0.00012911,2]
[323654185,1714147880123,-500.0,0.00012911,2]
[323654186,1714147880133,-5440.21,0.00012911,2]
[323654187,1714147880143,-500.0,0.00012911,2]
[323654188,1714147880153,-500.0,0.00012912,2]
[323654189,1714147880166,-500.0,0.00012912,2]
[323654190,1714147880177,-500.0,0.00012912,2]
[323654191,1714147880188,-500.0,0.00012912,2]
[323654192,1714147880198,-500.0,0.00012912,2]
[323654193,1714147880209,-500.0,0.00012912,2]
[323654194,1714147880219,-500.0,0.00012912,2]
[323654195,1714147880229,-500.0,0.00012912,2]
[323654196,1714147880239,-504.88095961,0.00012912,2]
[323654197,1714147880249,-686.34,0.00012912,2]
[323654198,1714147880258,-500.0,0.00012912,2]
[323654199,1714147880268,-500.0,0.00012912,2]
[323654200,1714147880277,-500.0,0.00012912,2]
[323654201,1714147880288,-273.38,0.00012912,2]
[323654202,1714147880297,-553.25,0.00012912,2]
[323654203,1714147880307,-575.82,0.00012912,2]
[323654204,1714147880317,-500.0,0.00012912,2]
[323654205,1714147880327,-500.0,0.00012912,2]
[323654206,1714147880337,-506.0,0.00012912,2]
[323654207,1714147880348,-500.0,0.00012912,2]
[323654208,1714147880358,-500.0,0.00012912,2]
[323654209,1714147880369,-500.0,0.00012912,2]
[323654210,1714147880380,-500.0,0.00012912,2]
[323654211,1714147880390,-500.0,0.00012912,2]
[323654212,1714147880400,-557.85334046,0.00012912,2]
[323654213,1714147880416,-500.0,0.00012912,2]
[323654214,1714147880427,-274.58,0.00012912,2]
[323654215,1714147880633,-500.0,0.00012912,2]
[323654216,1714147880643,-500.0,0.00012912,2]
[323654217,1714147880653,-500.0,0.00012912,2]
[323654218,1714147880666,-500.0,0.00012912,2]
[323654219,1714147880675,-500.0,0.00012912,2]
[323654220,1714147880685,-500.0,0.00012912,2]
[323654221,1714147880695,-315.89,0.00012912,2]
[323654222,1714147880705,-500.0,0.00012912,2]
[323654223,1714147880716,-500.0,0.00012912,2]
[323654224,1714147880726,-500.0,0.00012912,2]
[323654225,1714147880735,-500.0,0.00012912,2]
[323654226,1714147880745,-488.20307278,0.00012912,2]
[323654227,1714147880756,-500.0,0.00012912,2]
[323654228,1714147880766,-500.0,0.00012912,2]
[323654229,1714147880776,-500.0,0.00012912,2]
[323654230,1714147880785,-500.0,0.00012912,2]
[323654231,1714147880795,-500.0,0.00012912,2]
[323654232,1714147880805,-500.0,0.00012912,2]
[323654233,1714147880816,-500.0,0.00012912,2]
[323654234,1714147880831,-500.0,0.00012912,2]
[323654235,1714147880841,-500.0,0.00012912,2]
[323654236,1714147880850,-500.0,0.00012912,2]
[323654237,1714147880860,-500.0,0.00012912,2]
[323654238,1714147880870,-500.0,0.00012912,2]
[323654239,1714147880880,-500.0,0.00012912,2]
[323654240,1714147880890,-390.66671029,0.00012912,2]
[323654241,1714147880902,-500.0,0.00012912,2]
[323654242,1714147880913,-500.0,0.00012912,2]
[323654243,1714147880923,-1571.67,0.00012912,2]
[323654244,1714147880932,-500.0,0.00012912,2]
[323654245,1714147880942,-500.0,0.00012912,2]
[323654246,1714147880952,-500.0,0.00012912,2]
[323654247,1714147880963,-500.0,0.00012912,2]
[323654248,1714147880972,-501.26,0.00012912,2]
[323654249,1714147880982,-2602.83,0.00012912,2]
[323654250,1714147880991,-1381.81,0.00012912,2]
[323654251,1714147881001,-500.0,0.00012912,2]
[323654252,1714147881011,-500.0,0.00012912,2]
[323654253,1714147881021,-572.06038572,0.00012912,2]
[323654254,1714147881031,-500.0,0.00012912,2]
[323654255,1714147881041,-3824.4,0.00012912,2]
[323654256,1714147881051,-651.69,0.00012912,2]
[323654257,1714147881062,-4820.53,0.00012912,2]
[323654258,1714147881071,-500.0,0.00012912,2]
[323654259,1714147881081,-1817.93,0.00012912,2]
[323654260,1714147881090,-500.0,0.00012912,2]
[323654261,1714147881101,-500.0,0.00012912,2]
[323654262,1714147881112,-2274.26,0.00012912,2]
[323654263,1714147881122,-1800.42,0.00012912,2]
[323654264,1714147881131,-466.36,0.00012912,2]
[323654265,1714147881141,-500.0,0.00012912,2]
[323654266,1714147881151,-847.51,0.00012912,2]
[323654267,1714147881163,-500.0,0.00012912,2]
[323654268,1714147881173,-500.0,0.00012912,2]
[323654269,1714147881183,-500.0,0.00012912,2]
[323654270,1714147881194,-246.84922728,0.00012912,2]
[323654271,1714147881203,-500.0,0.00012912,2]
[323654272,1714147881214,-2110.83,0.00012912,2]
[323654273,1714147881224,-500.0,0.00012912,2]
[323654274,1714147881233,-4912.03,0.00012912,2]
[323654275,1714147881244,-500.0,0.00012912,2]
[323654276,1714147881254,-157.06415213,0.00012912,2]
[323654277,1714147881264,-2267.21,0.00012912,2]
[323654278,1714147881275,-500.0,0.00012912,2]
[323654279,1714147881286,-3292.1,0.00012912,2]
[323654280,1714147881296,-4403.85,0.00012912,2]
[323654281,1714147881306,-500.0,0.00012912,2]
[323654282,1714147881316,-1216.81,0.00012912,2]
[323654283,1714147881326,-1167.03,0.00012912,2]
[323654284,1714147881335,-500.0,0.00012912,2]
[323654285,1714147881345,-500.0,0.00012912,2]
[323654286,1714147881354,-500.0,0.00012912,2]
[323654287,1714147881363,-1876.03,0.00012912,2]
[323654288,1714147881373,-2711.28,0.00012912,2]
[323654289,1714147881382,-500.0,0.00012912,2]
[323654290,1714147881391,-501.75,0.00012912,2]
[323654291,1714147881401,-500.0,0.00012912,2]
[323654292,1714147881412,-2315.21,0.00012912,2]
[323654293,1714147881423,-6432.56,0.00012912,2]
[323654294,1714147881432,-500.0,0.00012913,2]
[323654295,1714147881442,-500.0,0.00012913,2]
[323654296,1714147881451,-500.0,0.00012913,2]
[323654297,1714147881461,-500.0,0.00012913,2]
[323654298,1714147881472,-1237.29,0.00012913,2]
[323654299,1714147881482,-956.3,0.00012913,2]
[323654300,1714147881493,-500.0,0.00012913,2]
[323654301,1714147881503,-500.0,0.00012913,2]
[323654302,1714147881513,-500.0,0.00012913,2]
[323654303,1714147881523,-903.79,0.00012913,2]
[323654304,1714147881533,-705.58,0.00012913,2]
[323654305,1714147881544,-500.0,0.00012913,2]
[323654306,1714147881554,-2207.9999991,0.0001299,2]
[323654307,1714147881564,-5047.29508663,0.0001299,2]
[323654308,1714147881574,-81535.52311621,0.0001299,2]
[323654309,1714147881583,-5043882.84259174,0.00013,2]
[323654310,1714147881967,-1547596.26434697,0.00013,2]
[323654311,1714147881978,-855580.3400721,0.00013,2]
[323654312,1714147881989,-1318254.18198454,0.00013,2]
[323654313,1714147882000,-384.83468693,0.00013,2]
[323654314,1714147882012,-6494.2,0.00013,2]
[323654315,1714147882023,-4650.0,0.00013,2]
[323654316,1714147882060,-500.0,0.00012089,2]
[323654317,1714147882069,-500.0,0.00012089,2]
[323654318,1714147882078,-48.582763,0.00013,2]
[323654319,1714147882091,-545.30782071,0.00013,2]
[323654320,1714147882102,-2536.105,0.00013,2]
[323654321,1714147882113,-450.23652105,0.00013,2]
[323654322,1714147882125,-281.70783134,0.00013,2]
[323654323,1714147882137,-1282.7117794,0.00013,2]
[323654324,1714147882159,-614.75218398,0.00013,2]
[323654325,1714147882172,-613.46221154,0.00013,2]
[323654326,1714147882203,-2911424.0530076,0.00013,2]
[323654327,1714147882214,-1763.37108582,0.00013,2]
[323654328,1714147882711,-292.00081544,0.00011539,2]
[323654329,1714147882791,-533.66918456,0.00011539,2]
[323654330,1714147882802,-500.0,0.00011542,2]
[323654331,1714147882812,-499.99,0.00011813,2]
[323654332,1714147882824,-500.0,0.00011816,2]
[323654333,1714147882835,-500.0,0.0001209,2]
[323654334,1714147882845,-500.0,0.00012363,2]
[323654335,1714147882857,-500.0,0.00012363,2]
[323654336,1714147882868,-316.16,0.00012364,2]
[323654337,1714147882878,-500.0,0.00012637,2]
[323654338,1714147882887,-500.0,0.00012637,2]
[323654339,1714147882900,-500.0,0.00012911,2]
[323654340,1714147882910,-499.86872265,0.00012911,2]
[323654341,1714147882927,-0.13127735,0.00012911,2]
[323654342,1714147882937,-702.38774285,0.00013,2]
[323654343,1714147882949,-156440.42108667,0.00013,2]
[323654344,1714147882963,-13280.0,0.00013,2]
[323654345,1714147882975,-806.3099995,0.00013,2]
[323654346,1714147882989,-530.9025,0.00013,2]
[323654347,1714147883009,-825.67,0.00011813,2]
[323654348,1714147883019,-1067.33,0.00013,2]
[323654349,1714147883033,-1268.139164,0.00013,2]
[323654350,1714147883046,-371065.13852364,0.00013,2]
[323654351,1714147883058,-293.39516373,0.00013,2]
[323654352,1714147883083,-709.03983979,0.00013,2]
[323654353,1714147883095,-301.60400004,0.00013,2]
[323654354,1714147883122,-500.0,0.00011539,2]
[323654355,1714147883133,-37.63488932,0.00013,2]
[323654356,1714147883145,-1004.98186152,0.00013,2]
[323654357,1714147883157,-453.0,0.00013,2]
[323654358,1714147883171,-6321.49917725,0.00013,2]
[323654359,1714147883386,-3731.85123044,0.00013,2]
[323654360,1714147883398,-789.06050431,0.00013,2]
[323654361,1714147883965,-500.0,0.00011539,2]
[323654362,1714147883975,-103.92688297,0.00011541,2]
[323654363,1714147883988,-396.07311703,0.00011541,2]
[323654364,1714147883998,-2852.28268297,0.00011541,2]
[323654365,1714147884009,-1825.79,0.00011541,2]
[323654366,1714147884021,-375.93228978,0.00011541,2]
[323654367,1714147884070,-44945.99502725,0.00011541,2]
[323654368,1714147884079,-500.0,0.00011542,2]
[323654369,1714147884089,-500.0,0.00011542,2]
[323654370,1714147884098,-477.98676228,0.00011813,2]
[323654371,1714147884108,-500.0,0.00011815,2]
[323654372,1714147884118,-500.0,0.00011816,2]
[323654373,1714147884128,-500.0,0.00011816,2]
[323654374,1714147884138,-825.67,0.00012087,2]
[323654375,1714147884147,-193.46405204,0.0001209,2]
[323654376,1714147884157,-500.0,0.0001209,2]
[323654377,1714147884166,-825.67,0.00012361,2]
[323654378,1714147884176,-825.67,0.00012635,2]
[323654379,1714147884186,-825.67,0.00012909,2]
[323654380,1714147884195,-24805.44435306,0.00013,2]
[323654381,1714147884207,-5094.04658628,0.00013,2]
[323654382,1714147884220,-91046.86599629,0.00013,2]
[323654383,1714147884250,-6640.65516025,0.00013,2]
[323654384,1714147884262,-781.573696,0.00013,2]
[323654385,1714147884274,-356.31263487,0.00013,2]
[323654386,1714147884356,-854.7214644,0.00013,2]
[323654387,1714147884367,-3369.61984,0.00013,2]
[323654388,1714147884379,-904.14599997,0.00013,2]
[323654389,1714147884483,-500.0,0.00012364,2]
[323654390,1714147884492,-12111.24482125,0.00013,2]
[323654396,1714148348855,151.0,0.00020469,120]
[323654397,1714148350131,306.82,8.5e-05,2]
[323654398,1714148435731,14661.9115022,8.5e-05,2]
[323654401,1714148860231,340.5,8.219e-05,2]
[323654430,1714149026298,108551.7120667,8.219e-05,2]
[323654450,1714149032411,-240.0,9.586e-05,2]
[323654451,1714149032421,-155.0,9.595e-05,2]
[323654452,1714149032430,-500.0,9.596e-05,2]
[323654453,1714149032439,-202.06308285,9.596e-05,2]
[323654464,1714149037966,-321.445025,9.596e-05,2]
[323654465,1714149038031,-5.49189215,9.596e-05,2]
[323654466,1714149038043,-1231.178286,9.597e-05,2]
[323654467,1714149038052,-1859.61,9.62e-05,2]
[323654468,1714149038062,-1477.7,9.64e-05,2]
[323654469,1714149038071,-1138.47,9.646e-05,2]
[323654470,1714149038080,-594.26,9.658e-05,2]
[323654471,1714149038090,-1852.42,9.665e-05,2]
[323654472,1714149038099,-150.0,9.748e-05,2]
[323654473,1714149038108,-11539.47,9.749e-05,2]
[323654474,1714149038117,-704.0,9.893e-05,2]
[323654475,1714149038127,-1727.0383,9.896e-05,2]
[323654476,1714149038136,-250.0,9.913e-05,2]
[323654477,1714149038145,-159.84,9.928e-05,2]
[323654478,1714149038155,-4928.14,9.978e-05,2]
[323654479,1714149038165,-549.04243891,0.0001,2]
[323654480,1714149038175,-165.46331883,0.0001,2]
[323654481,1714149038184,-159.84,0.00010002,2]
[323654482,1714149038193,-6132.2343,0.00010037,2]
[323654483,1714149038202,-1644.41,0.00010043,2]
[323654484,1714149038211,-3080.5,0.00010052,2]
[323654485,1714149038221,-159.84,0.00010076,2]
[323654486,1714149038230,-186.94,0.00010087,2]
[323654487,1714149038239,-4412.26,0.00010137,2]
[323654488,1714149038248,-159.84,0.0001015,2]
[323654490,1714149038257,-159.84,0.00010224,2]
[323654492,1714149038267,-159.84,0.00010298,2]
[323654494,1714149038276,-159.84,0.00010372,2]
[323654495,1714149038290,-159.84,0.00010446,2]
[323654498,1714149038303,-340.5,0.00010469,2]
[323654500,1714149038313,-160.0,0.00010708,2]
[323654501,1714149038323,-240.0,0.00010784,2]
[323654503,1714149038335,-360.0,0.00010901,2]
[323654506,1714149038345,-10000.0,0.00010959,2]
[323654507,1714149038354,-150.0,0.00010959,2]
[323654509,1714149038366,-833.33691221,0.0001096,2]
[323654512,1714149038377,-1300.07738684,0.0001096,2]
[323654513,1714149038388,-2750.0,0.00011,3]
[323654515,1714149038398,-704.0,0.0001113,2]
[323654517,1714149038407,-3907.67,0.00011157,2]
[323654520,1714149038417,-19567.16,0.00011157,2]
[323654521,1714149038427,-200.0,0.00011157,2]
[323654523,1714149038436,-4042.68,0.00011157,2]
[323654526,1714149038446,-500.0,0.00011157,2]
[323654528,1714149038455,-10265.0,0.00011157,2]
[323654529,1714149038467,-260.9089,0.00011438,2]
[323654532,1714149038477,-1048.5828,0.00011439,2]
[323654533,1714149038487,-224.90583068,0.0001144,2]
[323654536,1714149038497,-10000.0,0.00011441,2]
[323654537,1714149038506,-4583.44785109,0.00011527,2]
[323654539,1714149038515,-363.03433536,0.00011536,2]
[323654541,1714149038525,-597.5,0.00011536,2]
[323654544,1714149038535,-332.60004763,0.00011536,2]
[323654545,1714149038547,-292.886979,0.00011536,2]
[323654547,1714149038556,-705.82181173,0.00011536,2]
[323654549,1714149038565,-1845.89368994,0.00011536,2]
[323654551,1714149038574,-155.0,0.00011537,2]
[323654553,1714149038583,-444.46701666,0.00011537,2]
[323654555,1714149038593,-1351.45342977,0.00011537,2]
[323654557,1714149038602,-408.40214741,0.00011537,2]
[323654559,1714149038611,-1994.63391406,0.00011537,2]
[323654561,1714149038620,-155.0,0.00011537,2]
[323654563,1714149038629,-526.15864625,0.00011537,2]
[323654565,1714149038638,-236.4795796,0.00011537,2]
[323654567,1714149038647,-989.66735487,0.00011537,2]
[323654569,1714149038656,-4332.58774671,0.00011537,2]
[323654571,1714149038665,-233.74288174,0.00011537,2]
[323654573,1714149038674,-2321.74176097,0.00011537,2]
[323654575,1714149038684,-194.36220808,0.00011537,2]
[323654577,1714149038693,-305.46425129,0.00011537,2]
[323654580,1714149038703,-4322.85909605,0.00011537,2]
[323654581,1714149038713,-1244.26931048,0.00011537,2]
[323654584,1714149038725,-1215.61,0.00011537,2]
[323654585,1714149038734,-500.0,0.00011537,2]
[323654587,1714149038743,-1429.39,0.00011537,2]
[323654589,1714149038753,-1594.72,0.00011537,2]
[323654591,1714149038762,-500.0,0.00011537,2]
[323654594,1714149038772,-2223.39,0.00011537,2]
[323654596,1714149038781,-500.0,0.00011537,2]
[323654598,1714149038796,-2265.82,0.00011537,2]
[323654600,1714149038806,-1882.35,0.00011537,2]
[323654602,1714149038815,-1829.8,0.00011537,2]
[323654604,1714149038826,-1753.72,0.00011537,2]
[323654606,1714149038835,-1059.05,0.00011537,2]
[323654608,1714149038844,-2704.06,0.00011537,2]
[323654610,1714149038854,-5630.56,0.00011537,2]
[323654612,1714149038863,-2240.19,0.00011537,2]
[323654614,1714149038872,-3623.87,0.00011537,2]
[323654615,1714149038882,-287.85580058,0.00011537,2]
[323654622,1714149038935,-1987.37533618,0.00011537,2]
[323654625,1714149038954,-783.12886324,0.00011537,2]
[323654626,1714149038964,-712.94082041,0.00011537,2]
[323654627,1714149038976,-352.52247663,0.00011537,2]
[323654628,1714149038995,-109.48670296,0.00011537,2]
[323654629,1714149039006,-1244.22,0.00011537,2]
[323654630,1714149039015,-592.08819928,0.00011537,2]
[323654633,1714149039925,-401.06180072,0.00011537,2]
[323654634,1714149039935,-1322.94,0.00011537,2]
[323654635,1714149039947,-500.0,0.00011537,2]
[323654636,1714149039956,-1061.96139089,0.00011537,2]
[323654637,1714149039994,-958.94354859,0.00011537,2]
[323654638,1714149040006,-1133.92506052,0.00011537,2]
[323654639,1714149040016,-1624.18846442,0.00011537,2]
[323654640,1714149040028,-4441.36153558,0.00011537,2]
[323654641,1714149040038,-500.0,0.00011537,2]
[323654642,1714149040048,-500.0,0.00011537,2]
[323654643,1714149040058,-500.0,0.00011537,2]
[323654644,1714149040068,-500.0,0.00011537,2]
[323654645,1714149040078,-500.0,0.00011537,2]
[323654646,1714149040087,-500.0,0.00011537,2]
[323654647,1714149040097,-500.0,0.00011537,2]
[323654648,1714149040106,-500.0,0.00011537,2]
[323654649,1714149040115,-500.0,0.00011537,2]
[323654650,1714149040124,-500.0,0.00011537,2]
[323654651,1714149040133,-500.0,0.00011537,2]
[323654652,1714149040142,-500.0,0.00011537,2]
[323654653,1714149040152,-500.0,0.00011537,2]
[323654654,1714149040161,-500.0,0.00011537,2]
[323654655,1714149040171,-500.0,0.00011537,2]
[323654656,1714149040180,-3289.42,0.00011537,2]
[323654657,1714149040189,-500.0,0.00011537,2]
[323654658,1714149040199,-500.0,0.00011537,2]
[323654659,1714149040208,-2596.18,0.00011537,2]
[323654660,1714149040218,-324.40715981,0.00011538,2]
[323654661,1714149040227,-500.0,0.00011538,2]
[323654662,1714149040237,-500.0,0.00011538,2]
[323654663,1714149040246,-500.0,0.00011538,2]
[323654664,1714149040255,-500.0,0.00011538,2]
[323654665,1714149040264,-500.0,0.00011538,2]
[323654666,1714149040273,-500.0,0.00011538,2]
[323654667,1714149040283,-500.0,0.00011538,2]
[323654668,1714149040296,-500.0,0.00011538,2]
[323654669,1714149040305,-500.0,0.00011538,2]
[323654670,1714149040314,-502.137167,0.00011538,2]
[323654671,1714149040323,-612.86,0.00011538,2]
[323654672,1714149040333,-318.27216636,0.00011538,2]
[323654673,1714149040343,-500.0,0.00011538,2]
[323654674,1714149040352,-500.0,0.00011538,2]
[323654675,1714149040361,-583.31157972,0.00011538,2]
[323654677,1714149040373,-500.0,0.00011538,2]
[323654679,1714149040383,-500.0,0.00011538,2]
[323654680,1714149040392,-500.56488008,0.00011538,2]
[323654682,1714149040408,-500.0,0.00011538,2]
[323654683,1714149040430,-500.0,0.00011538,2]
[323654685,1714149040440,-500.0,0.00011538,2]
[323654687,1714149040449,-500.0,0.00011538,2]
[323654688,1714149040459,-640.17,0.00011538,2]
[323654689,1714149040468,-500.0,0.00011538,2]
[323654690,1714149040477,-500.0,0.00011538,2]
[323654691,1714149040487,-500.0,0.00011538,2]
[323654692,1714149040496,-644.23,0.00011538,2]
[323654693,1714149040506,-500.0,0.00011538,2]
[323654694,1714149040516,-500.0,0.00011538,2]
[323654695,1714149040525,-500.0,0.00011538,2]
[323654696,1714149040535,-500.0,0.00011538,2]
[323654697,1714149040545,-500.0,0.00011538,2]
[323654698,1714149040555,-1256.86,0.00011538,2]
[323654699,1714149040564,-500.0,0.00011538,2]
[323654701,1714149040573,-503.72,0.00011538,2]
[323654703,1714149040582,-500.0,0.00011538,2]
[323654704,1714149040591,-502.77149254,0.00011538,2]
[323654707,1714149040601,-539.34,0.00011538,2]
[323654708,1714149040610,-503.11053753,0.00011538,2]
[323654710,1714149040620,-500.0,0.00011538,2]
[323654712,1714149040629,-517.96906842,0.00011538,2]
[323654714,1714149040638,-500.0,0.00011538,2]
[323654716,1714149040647,-500.0,0.00011538,2]
[323654718,1714149040656,-500.0,0.00011538,2]
[323654720,1714149040665,-500.0,0.00011538,2]
[323654722,1714149040675,-500.0,0.00011538,2]
[323654723,1714149040684,-500.0,0.00011538,2]
[323654724,1714149040694,-500.0,0.00011538,2]
[323654725,1714149040703,-500.0,0.00011538,2]
[323654726,1714149040715,-500.0,0.00011538,2]
[323654727,1714149040724,-500.0,0.00011538,2]
[323654728,1714149040733,-500.0,0.00011538,2]
[323654729,1714149040743,-168.08919714,0.00011538,2]
[323654730,1714149040752,-500.0,0.00011538,2]
[323654731,1714149040761,-500.0,0.00011538,2]
[323654732,1714149040770,-1210.85,0.00011538,2]
[323654733,1714149040780,-500.0,0.00011538,2]
[323654734,1714149040789,-500.0,0.00011538,2]
[323654735,1714149040799,-500.0,0.00011538,2]
[323654737,1714149040809,-616.79,0.00011538,2]
[323654739,1714149040818,-500.0,0.00011538,2]
[323654741,1714149040826,-500.0,0.00011538,2]
[323654743,1714149040836,-500.0,0.00011538,2]
[323654745,1714149040845,-500.0,0.00011538,2]
[323654747,1714149040854,-500.0,0.00011538,2]
[323654749,1714149040863,-500.0,0.00011538,2]
[323654751,1714149040872,-500.0,0.00011538,2]
[323654753,1714149040881,-500.0,0.00011538,2]
[323654755,1714149040890,-500.0,0.00011538,2]
[323654756,1714149040900,-500.0,0.00011538,2]
[323654759,1714149040910,-500.0,0.00011538,2]
[323654761,1714149040920,-1046.89,0.00011538,2]
[323654763,1714149040931,-500.0,0.00011538,2]
[323654764,1714149040941,-500.0,0.00011538,2]
[323654767,1714149040952,-500.0,0.00011538,2]
[323654768,1714149040961,-500.0,0.00011538,2]
[323654770,1714149040971,-500.0,0.00011538,2]
[323654772,1714149040982,-500.0,0.00011538,2]
[323654774,1714149040991,-500.0,0.00011538,2]
[323654776,1714149041001,-500.0,0.00011538,2]
[323654778,1714149041010,-500.0,0.00011538,2]
[323654780,1714149041020,-500.0,0.00011538,2]
[323654782,1714149041030,-500.0,0.00011538,2]
[323654784,1714149041039,-500.0,0.00011538,2]
[323654786,1714149041048,-500.0,0.00011538,2]
[323654788,1714149041058,-500.0,0.00011538,2]
[323654790,1714149041067,-500.0,0.00011538,2]
[323654792,1714149041076,-500.0,0.00011538,2]
[323654794,1714149041085,-1662.26,0.00011538,2]
[323654796,1714149041094,-1614.92,0.00011538,2]
[323654798,1714149041103,-500.0,0.00011538,2]
[323654800,1714149041111,-500.0,0.00011538,2]
[323654802,1714149041120,-500.99566809,0.00011538,2]
[323654804,1714149041129,-500.0,0.00011538,2]
[323654806,1714149041139,-500.0,0.00011538,2]
[323654808,1714149041148,-500.0,0.00011538,2]
[323654810,1714149041157,-500.0,0.00011538,2]
[323654812,1714149041166,-500.0,0.00011538,2]
[323654814,1714149041176,-500.0,0.00011538,2]
[323654816,1714149041185,-500.0,0.00011538,2]
[323654818,1714149041194,-500.0,0.00011538,2]
[323654820,1714149041204,-540.35,0.00011538,2]
[323654822,1714149041213,-500.0,0.00011538,2]
[323654824,1714149041222,-500.0,0.00011538,2]
[323654826,1714149041231,-1901.7,0.00011538,2]
[323654828,1714149041240,-500.0,0.00011538,2]
[323654853,1714149041473,-500.0,0.00011538,2]
[323654855,1714149041487,-500.0,0.00011538,2]
[323654857,1714149041498,-563.3818538,0.00011538,2]
[323654859,1714149041507,-500.0,0.00011538,2]
[323654861,1714149041518,-500.0,0.00011538,2]
[323654863,1714149041528,-500.0,0.00011538,2]
[323654865,1714149041539,-500.0,0.00011538,2]
[323654867,1714149041549,-500.0,0.00011538,2]
[323654870,1714149041559,-631.08062721,0.00011538,2]
[323654871,1714149041569,-599.77,0.00011538,2]
[323654873,1714149041580,-396.38,0.00011538,2]
[323654875,1714149041591,-500.0,0.00011538,2]
[323654877,1714149041601,-500.0,0.00011538,2]
[323654880,1714149041611,-500.0,0.00011538,2]
[323654881,1714149041620,-500.0,0.00011538,2]
[323654884,1714149041630,-500.0,0.00011538,2]
[323654885,1714149041640,-500.0,0.00011538,2]
[323654888,1714149041649,-500.0,0.00011538,2]
[323654890,1714149041660,-550.39,0.00011538,2]
[323654892,1714149041669,-500.0,0.00011538,2]
[323654893,1714149041679,-500.0,0.00011538,2]
[323654895,1714149041690,-500.0,0.00011538,2]
[323654897,1714149041700,-662.42,0.00011538,2]
[323654900,1714149041709,-500.0,0.00011538,2]
[323654901,1714149041721,-1748.51,0.00011538,2]
[323654904,1714149041730,-500.0,0.00011538,2]
[323654905,1714149041740,-500.0,0.00011538,2]
[323654908,1714149041750,-623.8,0.00011538,2]
[323654910,1714149041760,-500.0,0.00011538,2]
[323654912,1714149041771,-500.0,0.00011538,2]
[323654914,1714149041782,-500.0,0.00011538,2]
[323654916,1714149041794,-500.0,0.00011538,2]
[323654917,1714149041805,-500.0,0.00011538,2]
[323654919,1714149041816,-529.75,0.00011538,2]
[323654922,1714149041827,-2131.48,0.00011538,2]
[323654923,1714149041838,-500.0,0.00011538,2]
[323654926,1714149041849,-500.0,0.00011538,2]
[323654927,1714149041858,-500.0,0.00011538,2]
[323654929,1714149041868,-1276.19,0.00011538,2]
[323654931,1714149041879,-1531.16,0.00011538,2]
[323654934,1714149041889,-500.0,0.00011538,2]
[323654936,1714149041900,-1269.59,0.00011538,2]
[323654938,1714149041910,-500.0,0.00011538,2]
[323654940,1714149041920,-500.0,0.00011538,2]
[323654942,1714149041930,-4251.17,0.00011538,2]
[323654944,1714149041941,-500.0,0.00011538,2]
[323654945,1714149041950,-500.0,0.00011538,2]
[323654948,1714149041960,-4257.92,0.00011538,2]
[323654950,1714149041970,-651.9,0.00011538,2]
[323654951,1714149041979,-500.0,0.00011538,2]
[323654954,1714149041990,-11294.83,0.00011538,2]
[323654955,1714149042001,-500.0,0.00011538,2]